bitfinex/quotes_ETHUSD_20220215
["timestamp","ask_amount","ask_price","bid_price","bid_amount"]
[1644956387268,0.00026031,3113.6,3113.3,0.00441198]
[1644956387469,0.43826484,3113.6,3113.3,0.00441198]
[1644956387669,0.00026031,3113.6,3113.1,0.00441198]
[1644956387871,0.8032,3113.4,3113.2,0.64638118]
[1644956388069,0.8032,3113.4,3113.3,0.00441198]
[1644956388269,0.8032,3113.4,3113.2,0.00492416]
[1644956388270,18.8,3113.3,3113.2,0.00492416]
[1644956388476,1.23390027,3113.4,3113.2,0.00492416]
[1644956388970,0.80325,3113.0,3112.3,0.00441198]
[1644956389328,19.23273538,3113.4,3112.5,1.60655]
[1644956389528,0.43273538,3113.4,3112.6,0.64658061]
[1644956389726,0.43273538,3113.4,3112.5,1.60655]
[1644956389727,0.13273538,3113.4,3112.7,0.64658061]
[1644956389929,0.00026031,3113.6,3112.8,0.64658061]
[1644956390128,0.00026031,3113.6,3112.9,0.64216863]
[1644956390329,18.8,3113.4,3113.0,1.44981061]
[1644956390528,2.75909982,3113.4,3113.1,0.64216863]
[1644956390729,2.75909982,3113.4,3113.1,0.64658061]
[1644956390929,0.71734657,3113.3,3113.2,0.64939947]
[1644956391132,0.71734657,3113.3,3113.2,0.64498749]
[1644956391333,0.71734657,3113.3,3113.2,0.00441198]
[1644956391628,1.52057657,3113.3,3113.1,0.00473403]
[1644956391830,0.00026031,3113.6,3113.2,0.64498749]
[1644956392327,0.00026031,3113.6,3113.3,0.00441198]
[1644956392529,0.00026031,3113.6,3113.4,0.64498749]
[1644956392928,0.00026031,3113.6,3113.5,0.00441198]
[1644956393183,0.00026031,3113.6,3113.5,0.64939947]
[1644956393585,0.71753919,3113.6,3113.5,0.64939947]
[1644956393787,0.00026031,3113.6,3113.5,0.64498749]
[1644956393984,0.00026031,3113.6,3113.5,0.64940004]
[1644956394184,0.00026031,3113.6,3113.5,0.64498749]
[1644956395284,0.92821451,3113.6,3113.4,0.64987312]
[1644956395486,0.92821451,3113.6,3113.5,0.64498749]
[1644956395686,1.64624136,3113.6,3113.5,0.64498749]
[1644956396187,2.44937136,3113.6,3113.5,0.64498749]
[1644956396390,25.06996897,3113.6,3113.5,0.64498749]
[1644956396824,6.26996897,3113.6,3113.5,0.64498749]
[1644956397228,6.38860686,3113.6,3113.5,0.64498749]
[1644956397527,25.18860686,3113.6,3113.5,0.64498749]
[1644956398328,27.04163949,3113.6,3113.4,0.00443758]
[1644956398527,24.17460305,3113.5,3112.9,0.80325]
[1644956398729,1.27532713,3113.1,3113.0,0.65000326]
[1644956398932,2.29335398,3113.1,3113.0,0.65000411]
[1644956399128,1.48371756,3113.1,3113.0,0.65000411]
[1644956399927,1.31802685,3113.1,3113.0,0.65000411]
[1644956400332,2.25289468,3113.1,3113.0,0.65000411]
[1644956400771,1.95289468,3113.1,3113.0,0.65000411]
[1644956400973,1.65289468,3113.1,3113.0,0.65000411]
[1644956401175,0.14270129,3113.2,3113.0,0.65000411]
[1644956401374,0.3,3113.1,3112.9,0.00407979]
[1644956401575,0.14570263,3113.1,3113.0,0.64537983]
[1644956401772,1.90661031,3113.6,3113.3,0.13839553]
[1644956401973,1.90661031,3113.6,3113.4,0.64537983]
[1644956401974,0.7203824,3113.5,3113.4,0.64537983]
[1644956403172,19.8203824,3113.5,3113.4,0.64537983]
[1644956403373,1.0203824,3113.5,3113.4,0.64537983]
[1644956403673,1.15507632,3113.5,3113.4,0.64537983]
[1644956404319,0.85507632,3113.5,3113.4,0.64537983]
[1644956404520,0.7203824,3113.5,3113.4,0.64537983]
[1644956404724,0.7203824,3113.5,3113.4,0.94537983]
[1644956404922,0.00026031,3113.6,3113.4,0.94537983]
[1644956405121,0.00026031,3113.6,3113.5,0.00443843]
[1644956405323,0.00026031,3113.6,3113.5,0.64981826]
[1644956405520,0.00026031,3113.6,3113.5,0.64537983]
[1644956405721,0.00026031,3113.6,3113.5,1.35927983]
[1644956406122,0.00026031,3113.6,3113.5,2.35927983]
[1644956406520,0.67104121,3113.8,3113.5,2.35927983]
[1644956406726,0.67104121,3114.3,3113.6,0.64981726]
[1644956406920,0.61014138,3114.6,3113.7,0.00443743]
[1644956407322,0.61014138,3114.4,3113.7,0.00443743]
[1644956407522,0.61014138,3114.5,3113.7,0.00443743]
[1644956407722,1.77089331,3114.5,3113.7,0.00443743]
[1644956407921,1.77089331,3114.5,3113.4,0.00443743]
[1644956408180,1.77089331,3114.5,3113.8,0.80285]
[1644956408477,2.57380331,3114.5,3113.8,0.80285]
[1644956408675,0.61014138,3114.5,3113.8,0.80285]
[1644956408876,0.1804563,3114.6,3113.8,0.80285]
[1644956408877,0.61014138,3114.6,3113.8,0.80285]
[1644956409176,0.91014138,3114.6,3113.8,1.60566]
[1644956409379,1.10664676,3114.6,3113.8,0.80285]
[1644956409976,0.80664676,3114.6,3113.8,0.80285]
[1644956410182,0.61014138,3114.6,3113.8,0.80285]
[1644956410378,1.11057279,3114.3,3113.8,0.80285]
[1644956410582,3.46728187,3114.2,3113.8,0.80285]
[1644956410781,1.41057279,3114.3,3113.8,0.80285]
[1644956410782,2.15847101,3114.3,3113.8,0.80285]
[1644956410980,2.02071417,3114.3,3113.8,0.80285]
[1644956411183,2.19191718,3114.3,3113.8,0.80285]
[1644956411379,0.80299,3114.2,3113.8,0.80285]
[1644956412725,1.5817758,3114.3,3113.8,0.80285]
[1644956414630,0.80298,3114.2,3113.8,0.80285]
[1644956416774,1.6060621,3114.2,3113.8,0.80285]
[1644956416975,0.80307,3114.1,3113.8,0.80285]
[1644956418278,1.60615,3114.1,3113.7,1.60569]
[1644956420029,1.14263193,3113.8,3113.7,1.60569]
[1644956420231,1.14263193,3113.8,3113.6,0.80316]
[1644956421631,0.80316,3113.7,3113.5,0.00493991]
[1644956422436,0.80316,3113.7,3113.4,1.61065743]
[1644956422834,0.80316,3113.7,3113.4,1.61559747]
[1644956423671,0.04467364,3113.7,3113.4,1.61065743]
[1644956424070,0.04467364,3113.7,3113.4,1.61559753]
[1644956424472,0.95049097,3114.1,3113.4,1.61559753]
[1644956424473,1.75354947,3114.1,3113.4,1.61559753]
[1644956424672,0.77387457,3114.3,3113.7,0.80293]
[1644956424975,1.05146851,3114.4,3113.7,0.80293]
[1644956425972,1.05146851,3114.4,3113.8,1.6056931]
[1644956426172,0.61014138,3114.6,3113.8,0.80283]
[1644956426371,0.61014138,3114.6,3113.8,1.80283]
[1644956426573,0.61014138,3114.6,3113.8,0.80283]
[1644956426824,1.64255787,3114.6,3113.9,3.84583988]
[1644956427025,0.73241649,3114.5,3114.0,2.43464306]
[1644956427229,0.8171574,3114.9,3114.0,2.43464306]
[1644956427230,0.73241649,3114.4,3114.1,3.84279786]
[1644956427429,0.61014138,3115.0,3114.2,0.63182306]
[1644956427430,0.73241649,3114.3,3114.2,0.63182306]
[1644956427632,0.61014138,3115.0,3114.2,1.63182306]
[1644956427826,0.61014138,3115.0,3114.3,0.63182306]
[1644956428026,0.73241649,3114.9,3114.3,0.63182306]
[1644956428226,0.73241649,3114.8,3114.3,0.63182306]
[1644956428430,0.73241649,3114.7,3114.5,0.8026986]
[1644956428627,1.60453837,3115.1,3114.6,0.63182306]
[1644956428828,0.7284379,3115.0,3114.6,0.63182306]
[1644956429028,0.7284379,3114.9,3114.6,0.63182306]
[1644956429228,0.61014138,3115.1,3114.6,0.63182306]
[1644956429432,0.61358682,3115.2,3114.6,0.63182306]
[1644956429629,0.91014138,3115.2,3114.6,0.63182306]
[1644956429829,0.7284379,3115.1,3114.6,0.63182306]
[1644956430430,0.7284379,3115.1,3114.6,5.38559936]
[1644956430673,0.7284379,3115.1,3114.7,0.63182306]
[1644956431274,0.7284379,3115.1,3114.7,4.61661764]
[1644956431472,0.7284379,3115.1,3114.8,0.63352807]
[1644956431672,0.7284379,3115.1,3114.9,0.63352807]
[1644956431874,0.7284379,3115.1,3114.8,0.80264]
[1644956433276,0.7284379,3115.1,3114.9,0.63344469]
[1644956433577,0.7284379,3115.1,3115.0,4.10721134]
[1644956433777,0.00285316,3115.3,3115.0,5.49844348]
[1644956434077,0.00285316,3115.3,3115.1,0.63293867]
[1644956434330,0.00285316,3115.3,3115.1,2.43539867]
[1644956434527,0.72679345,3115.5,3115.2,0.63293867]
[1644956434728,0.72679345,3115.4,3115.2,3.04040867]
[1644956434928,0.0008612,3115.4,3115.3,1.63293867]
[1644956435733,0.7268267,3115.7,3115.3,1.63293867]
[1644956435928,0.0008612,3115.5,3115.3,1.80253]
[1644956436828,0.7268267,3115.9,3115.3,1.80253]
[1644956437230,0.0008612,3115.6,3115.3,1.80253]
[1644956437630,0.0008612,3115.6,3115.3,4.99402168]
[1644956437833,0.0008612,3115.6,3115.3,0.80253]
[1644956438077,1.0268267,3115.9,3115.3,0.80253]
[1644956438078,0.7268267,3115.8,3115.3,0.80253]
[1644956438574,0.00285336,3115.6,3115.3,0.80253]
[1644956438972,0.62968006,3115.6,3115.3,0.80253]
[1644956439170,0.80263,3115.7,3115.3,0.80253]
[1644956441572,0.80263,3115.7,3115.2,1.60498]
[1644956442427,1.6052749,3115.7,3115.2,1.60498]
[1644956442826,0.80265,3115.6,3115.2,1.60498]
[1644956443827,0.80265,3115.6,3115.2,0.14573804]
[1644956444229,5.53249414,3115.6,3114.8,3.1313]
[1644956444431,1.6055255,3115.3,3114.4,0.00453588]
[1644956444729,0.96753314,3115.3,3114.4,0.00453588]
[1644956444929,18.59916517,3115.3,3114.4,0.00453588]
[1644956445129,0.3,3115.2,3114.4,0.00453588]
[1644956445329,0.46384352,3115.2,3114.2,1.80291]
[1644956445577,1.10293,3115.1,3114.4,0.00453573]
[1644956445786,0.80288,3114.9,3114.4,0.00453573]
[1644956446075,0.8028781,3114.8,3114.4,0.00453573]
[1644956446475,0.8028781,3114.8,3114.4,0.80288]
[1644956446874,0.8028781,3114.8,3114.4,0.80741566]
[1644956446875,0.80288,3114.7,3114.4,0.80741566]
[1644956447680,0.80288,3114.7,3114.4,0.80288]
[1644956447977,0.80288,3114.7,3114.4,0.80741568]
[1644956448176,1.72595235,3114.7,3114.4,0.80741568]
[1644956448977,1.72595235,3114.7,3114.4,0.80288]
[1644956449181,6.16643431,3114.7,3114.4,0.80744362]
[1644956449431,6.45922636,3114.7,3114.4,0.00456362]
[1644956449626,0.80298,3114.5,3114.4,0.00456362]
[1644956450024,1.10298,3114.5,3113.4,3.70543899]
[1644956450228,1.10298,3114.5,3113.4,3.09593743]
[1644956450229,0.3,3114.5,3113.4,3.09593743]
[1644956450426,0.3,3114.5,3114.3,0.00456374]
[1644956450827,1.90595,3114.6,3114.3,0.00456374]
[1644956451035,0.80289,3114.4,3114.3,0.00456374]
[1644956451226,1.40289,3114.4,3114.3,0.00456374]
[1644956451426,1.40289,3114.4,3113.4,3.09593743]
[1644956451628,1.60611,3114.2,3113.7,0.80306]
[1644956451827,2.20611,3114.2,3113.7,0.80306]
[1644956452026,0.80306,3114.1,3113.7,0.80306]
[1644956452830,1.6061032,3114.1,3113.7,0.80762251]
[1644956453274,0.80303,3113.9,3113.7,0.80762251]
[1644956453677,1.10303,3113.9,3113.7,0.80306]
[1644956453874,0.80303,3113.9,3113.7,0.80306]
[1644956454679,0.80303,3113.9,3113.6,0.00456263]
[1644956454879,0.80303,3113.9,3113.4,0.00443743]
[1644956455279,0.80303,3113.9,3113.6,0.00456263]
[1644956456180,1.60616,3113.9,3113.4,0.00443743]
[1644956456375,1.60616,3113.9,3113.6,0.00456282]
[1644956456376,2.409238,3113.9,3113.6,0.00456282]
[1644956456579,0.80303,3113.9,3113.6,0.00456282]
[1644956457233,0.80296,3114.0,3113.4,0.00443743]
[1644956457734,0.46213303,3114.2,3113.6,0.80765282]
[1644956458533,0.46213303,3114.2,3113.6,0.80309]
[1644956458739,0.46213303,3114.2,3113.7,0.00371174]
[1644956458935,0.80296,3114.1,3113.7,0.80666174]
[1644956459234,0.46213303,3114.2,3113.8,0.66197655]
[1644956459435,0.69679058,3114.1,3113.8,0.66197655]
[1644956460038,0.69679058,3114.1,3113.8,1.46859816]
[1644956460237,2.4087421,3114.6,3113.9,0.66197655]
[1644956460438,0.69694407,3114.5,3113.9,0.66197655]
[1644956460715,1.1747,3115.1,3113.9,0.66197655]
[1644956460913,1.1747,3115.1,3113.9,1.73317655]
[1644956460914,0.69706829,3115.0,3113.9,1.73317655]
[1644956461114,0.69706829,3115.0,3114.0,1.46477655]
[1644956461319,0.69706829,3115.0,3114.4,0.80266]
[1644956461514,0.69706829,3115.0,3114.5,0.66197655]
[1644956462716,0.69706829,3115.0,3114.5,1.46469655]
[1644956462916,0.69706829,3115.0,3114.6,0.66197655]
[1644956463821,0.69706829,3115.0,3114.6,1.46466655]
[1644956464219,0.69706829,3115.0,3114.7,0.66197655]
[1644956464431,0.69706829,3115.0,3114.6,0.80269]
[1644956464628,0.02083786,3114.5,3114.4,1.60535]
[1644956464826,0.71790615,3114.5,3114.4,2.28715401]
[1644956465126,0.71790615,3114.5,3114.4,1.48446401]
[1644956465328,0.02083786,3114.5,3114.4,1.48446401]
[1644956465826,0.02083786,3114.5,3114.4,1.47987023]
[1644956466432,0.02083786,3114.5,3114.4,2.47987023]
[1644956467230,0.02083786,3114.5,3114.4,1.47987023]
[1644956468278,0.7041836,3114.5,3114.4,1.47987023]
[1644956474731,0.02083786,3114.5,3114.4,1.47987023]
[1644956479082,0.70427063,3114.5,3114.4,1.47987023]
[1644956479749,0.02083786,3114.5,3114.4,1.47987023]
[1644956480147,0.70427407,3114.5,3114.4,1.47987023]
[1644956484685,0.02083786,3114.5,3114.4,1.47987023]
[1644956485381,0.70488052,3114.5,3114.4,1.47987023]
[1644956489427,0.70488052,3114.5,3114.4,2.28253023]
[1644956489628,0.70488052,3114.5,3114.4,1.47987023]
[1644956489834,0.70488052,3114.5,3114.4,2.47987023]
[1644956490133,0.70488052,3114.5,3114.4,1.47987023]
[1644956495929,0.70488052,3114.5,3114.4,0.67721023]
[1644956496132,0.70488052,3114.5,3114.0,0.60950156]
[1644956496133,1.50786052,3114.5,3114.3,0.00456506]
[1644956496329,0.82381786,3114.5,3114.3,0.00456506]
[1644956497131,0.82381786,3114.5,3113.8,1.60585]
[1644956497132,0.82379246,3114.5,3113.8,1.60585]
[1644956497333,0.80291,3114.3,3114.2,0.00456512]
[1644956498198,0.80291,3114.3,3113.7,0.80291]
[1644956498594,0.80291,3114.3,3114.1,0.8074653]
[1644956499393,0.80291,3114.3,3114.1,0.8029]
[1644956502732,0.02083786,3114.5,3114.1,0.8029]
[1644956502928,0.02083786,3114.5,3114.1,1.8029]
[1644956503329,0.02083786,3114.5,3114.1,1.80746497]
[1644956503729,0.02083786,3114.5,3114.2,0.80272]
[1644956503931,0.02083786,3114.5,3114.2,1.60549]
[1644956504130,0.02083786,3114.5,3114.2,1.80277]
[1644956504733,0.02083786,3114.5,3114.2,1.80733491]
[1644956505031,0.02083786,3114.5,3114.2,2.61012491]
[1644956505431,0.02083786,3114.5,3114.2,0.80277]
[1644956505979,0.02083786,3114.5,3114.2,0.80733491]
[1644956506380,0.02083786,3114.5,3114.2,1.61012491]
[1644956506780,0.02083786,3114.5,3114.2,1.60556]
[1644956506980,0.02083786,3114.5,3114.2,1.61012516]
[1644956507580,0.02083786,3114.5,3114.3,0.80276]
[1644956510828,0.02083786,3114.5,3114.3,1.6054757]
[1644956511230,0.02083786,3114.5,3114.3,2.6054757]
[1644956511729,0.02083786,3114.5,3114.3,1.6054757]
[1644956512331,0.02083786,3114.5,3114.3,0.80276]
[1644956512532,0.02083786,3114.5,3114.2,2.61011508]
[1644956512730,0.02083786,3114.5,3114.2,1.80277]
[1644956513189,0.02083786,3114.5,3114.2,0.00456508]
[1644956513190,1.04308348,3114.3,3114.2,0.00456508]
[1644956513486,2.64398348,3114.3,3114.2,0.00456508]
[1644956513688,3.44710348,3114.3,3114.2,0.00456508]
[1644956513885,3.14710348,3114.3,3113.4,4.10950156]
[1644956514096,2.34398348,3114.3,3113.4,3.5]
[1644956514286,2.34398348,3114.3,3114.1,0.00457776]
[1644956514485,1.6060773,3114.2,3114.1,0.00457776]
[1644956514685,2.60113655,3114.2,3114.1,0.00457776]
[1644956515186,0.99505925,3114.2,3113.5,1.0]
[1644956515385,0.80305,3114.2,3114.0,0.00457788]
[1644956515590,0.94589683,3114.2,3114.0,0.00457788]
[1644956515786,1.60607,3114.1,3114.0,0.00457788]
[1644956516187,2.2912454,3114.1,3114.0,0.00457788]
[1644956516387,2.2912454,3114.1,3113.6,0.67942069]
[1644956516586,0.6851754,3114.0,3113.9,0.004578]
[1644956516830,0.6851754,3114.0,3113.9,0.68399869]
[1644956517028,2.2913154,3114.0,3113.9,0.68399869]
[1644956517228,3.0943356,3114.0,3113.9,0.68399869]
[1644956517428,3.0943356,3114.0,3113.9,0.67942069]
[1644956517628,3.27978663,3114.0,3113.9,0.67942069]
[1644956519229,1.60613,3113.9,3113.8,0.00457645]
[1644956519428,2.2913054,3113.9,3113.8,0.68305181]
[1644956520030,2.2913054,3113.9,3113.8,0.67847536]
[1644956521084,2.2913054,3113.9,3113.8,0.06124536]
[1644956521279,2.2913054,3113.9,3113.3,0.00443743]
[1644956521280,3.8974868,3113.9,3113.3,0.00443743]
[1644956521485,3.8974868,3113.9,3113.7,0.00457676]
[1644956521486,1.60617,3113.8,3113.7,0.00457676]
[1644956522280,1.60617,3113.8,3113.6,0.80307]
[1644956522680,1.60617,3113.8,3113.6,0.80764688]
[1644956523583,1.60617,3113.8,3113.6,0.80307]
[1644956524345,21.00617,3113.8,3113.5,0.00457694]
[1644956524540,21.00617,3113.8,3112.7,3.1854]
[1644956524541,0.80325,3113.4,3112.7,3.1854]
[1644956524738,1.10325,3113.4,3113.3,0.0044723]
[1644956524938,1.26948682,3113.4,3112.8,0.0044723]
[1644956525338,1.00937304,3113.3,3112.8,0.0044723]
[1644956525538,0.80336,3113.0,3112.5,0.0044723]
[1644956526739,1.9066616,3113.0,3112.5,0.8078223]
[1644956526955,1.46046871,3112.2,3111.7,0.9836071]
[1644956527153,3.5,3112.1,3111.6,1.0]
[1644956527342,3.5,3112.1,3111.1,7.95175478]
[1644956527343,3.963,3112.1,3111.1,7.95175478]
[1644956527539,3.963,3112.1,3111.0,0.128532]
[1644956527540,23.79402523,3112.1,3111.0,0.128532]
[1644956527740,18.8,3111.9,3111.0,0.128532]
[1644956527941,18.8,3111.9,3110.2,4.77928907]
[1644956527942,19.60385,3111.7,3109.8,2.17339775]
[1644956528184,5.0,3111.9,3109.9,0.60950156]
[1644956528185,18.8,3111.5,3109.9,0.60950156]
[1644956528384,18.8,3111.5,3109.8,0.67204726]
[1644956528385,0.17298441,3111.2,3109.8,0.67204726]
[1644956528587,0.463,3111.4,3109.8,1.28154882]
[1644956528783,0.463,3111.4,3110.6,0.00496031]
[1644956528988,0.90346198,3111.3,3110.6,0.00496031]
[1644956529187,1.16695394,3110.7,3110.6,0.00496031]
[1644956529584,1.16695394,3110.7,3109.8,1.47577656]
[1644956529785,1.16695394,3110.7,3110.2,1.60753]
[1644956529985,1.16695394,3110.7,3110.5,0.00410027]
[1644956530886,1.16695394,3110.7,3110.0,7.28]
[1644956531089,1.16695394,3110.7,3110.4,0.00410033]
[1644956531850,1.04959867,3110.7,3110.4,0.00410033]
[1644956532041,1.04959867,3110.7,3110.0,8.10024379]
[1644956532042,1.04959867,3110.7,3110.0,7.28]
[1644956532240,1.04959867,3110.7,3110.4,0.0041004]
[1644956532440,3.5,3111.2,3110.6,0.80376]
[1644956532640,2.0706,3111.3,3110.6,0.80376]
[1644956532843,3.34159482,3111.2,3110.6,0.80376]
[1644956533340,3.34159482,3111.2,3110.2,1.60754]
[1644956533544,3.34159482,3111.2,3110.7,0.00496317]
[1644956533746,22.14159482,3111.2,3110.7,0.00496317]
[1644956534441,19.68104659,3111.1,3110.4,0.80378]
[1644956534642,0.96893608,3110.6,3110.4,0.80378]
[1644956535880,0.96893608,3110.6,3110.3,0.00477054]
[1644956536881,0.80382,3111.0,3110.2,1.60754]
[1644956537081,0.80382,3111.0,3110.3,0.00477061]
[1644956537082,1.10382,3111.0,3110.3,0.00477061]
[1644956537282,1.29948825,3111.0,3110.4,0.80378]
[1644956537982,1.10382,3111.0,3110.4,0.80378]
[1644956538181,1.00274976,3110.9,3110.5,0.00477028]
[1644956539181,1.00274976,3110.9,3110.4,0.8038]
[1644956539436,1.00274976,3110.9,3110.5,0.00481335]
[1644956539628,0.80385,3110.8,3110.5,0.00481335]
[1644956540330,0.80385,3110.8,3110.2,1.60754]
[1644956540730,0.80385,3110.8,3110.5,0.00481342]
[1644956541533,0.80385,3110.8,3110.2,1.60754]
[1644956541934,1.00274976,3110.9,3110.5,0.00481342]
[1644956542537,0.80379,3111.0,3110.5,0.00481342]
[1644956542737,0.25,3111.6,3110.5,0.00926794]
[1644956542939,4.7769,3111.9,3110.5,0.00445452]
[1644956542940,0.80357,3111.8,3110.5,0.00445452]
[1644956543188,2.9155,3111.9,3110.8,0.8036]
[1644956543393,2.9155,3111.9,3110.9,0.00445452]
[1644956543588,3.84230382,3111.9,3110.9,0.00445452]
[1644956543991,0.80357,3111.8,3111.1,0.80356]
[1644956544188,0.80357,3111.8,3111.2,0.00445452]
[1644956544390,0.80357,3111.8,3111.2,0.30480282]
[1644956544789,0.75357,3111.8,3111.2,0.00480282]
[1644956544991,0.92680382,3111.9,3111.2,0.80832282]
[1644956545192,0.92680382,3111.9,3111.3,0.80803452]
[1644956545592,0.80352,3112.0,3111.3,0.81283721]
[1644956546391,0.80352,3112.0,3111.3,0.80803452]
[1644956546593,0.80352,3112.0,3111.3,1.61151452]
[1644956546857,0.80352,3112.0,3111.5,0.00480462]
[1644956547057,0.80352,3112.0,3111.5,0.00925914]
[1644956547657,0.80352,3112.0,3111.5,0.00445452]
[1644956547859,0.80352,3112.0,3111.6,0.00480449]
[1644956548859,0.80352,3112.0,3111.6,0.00925901]
[1644956549060,0.80352,3112.0,3111.6,0.00445452]
[1644956549262,0.80352,3112.0,3111.6,0.00925894]
[1644956550061,0.80352,3112.0,3111.6,0.00445452]
[1644956550261,1.6070977,3112.0,3111.6,0.00925846]
[1644956551286,1.6070977,3112.0,3111.6,0.00445452]
[1644956551481,1.6070977,3112.0,3111.6,0.00925846]
[1644956552483,1.6070977,3112.0,3111.6,0.00445452]
[1644956552683,1.6070977,3112.0,3111.6,0.00925846]
[1644956553581,1.6070977,3112.0,3111.6,0.00445452]
[1644956553983,1.6070977,3112.0,3111.6,0.0094165]
[1644956554834,1.6070977,3112.0,3111.6,0.00445452]
[1644956555034,1.6070977,3112.0,3111.6,0.0094165]
[1644956555634,0.80352,3112.0,3111.6,0.0094165]
[1644956556036,0.80352,3112.0,3111.6,0.00445452]
[1644956556235,0.80352,3112.0,3111.6,0.0094165]
[1644956556835,1.6070846,3112.0,3111.6,0.0094165]
[1644956557336,1.6070846,3112.0,3111.6,0.00445452]
[1644956557547,1.6070846,3112.0,3111.6,0.0094165]
[1644956558386,5.47857845,3112.0,3111.6,0.00445452]
[1644956558585,5.47857845,3112.0,3110.6,2.7829]
[1644956558586,1.45650851,3111.3,3110.6,2.7829]
[1644956558786,1.45650851,3111.3,3111.2,0.0198509]
[1644956559785,1.45650851,3111.3,3111.1,1.60697]
[1644956559987,1.45650851,3111.3,3111.2,0.3]
[1644956560888,1.46046871,3112.2,3111.3,4.15]
[1644956561085,1.46046871,3112.2,3111.4,0.80332]
[1644956561485,1.46046871,3112.2,3111.5,0.67205358]
[1644956561837,1.46046871,3112.2,3111.7,0.80337]
[1644956562240,1.46046871,3112.2,3111.8,0.80339]
[1644956562438,1.46046871,3112.2,3111.8,1.80339]
[1644956562838,1.46046871,3112.2,3111.8,0.80339]
[1644956563439,1.46046871,3112.2,3111.8,1.80820464]
[1644956563639,1.46046871,3112.2,3111.9,0.8034]
[1644956563842,1.46046871,3112.2,3111.9,1.60677]
[1644956564140,1.46046871,3112.2,3111.9,2.60677]
[1644956564540,1.46046871,3112.2,3111.9,1.8034]
[1644956564541,2.26389871,3112.2,3111.9,1.8034]
[1644956564742,2.26389871,3112.2,3111.9,0.80828448]
[1644956565340,2.26389871,3112.2,3111.9,0.00488448]
[1644956565585,1.0220928,3112.1,3111.8,3.22271309]
[1644956565787,0.80351,3112.0,3111.7,1.0]
[1644956565989,0.80351,3112.0,3111.9,0.00488448]
[1644956566590,1.0220928,3112.1,3111.9,0.00488448]
[1644956566787,1.0220928,3112.1,3111.6,1.0]
[1644956566989,1.46046871,3112.2,3111.7,0.67342704]
[1644956567187,1.46046871,3112.2,3111.8,0.00488461]
[1644956567588,1.46046871,3112.2,3111.8,0.80831461]
[1644956567793,1.46046871,3112.2,3111.9,4.24534117]
[1644956567989,1.46046871,3112.2,3112.0,0.67352176]
[1644956568187,1.46046871,3112.2,3112.1,3.44115336]
[1644956568392,1.46046871,3112.2,3112.1,5.11467512]
[1644956568590,1.46046871,3112.2,3112.1,5.41467512]
[1644956568992,2.7896,3113.1,3112.1,5.41467512]
[1644956569193,1.8993,3113.6,3112.2,2.27983176]
[1644956569442,0.65501258,3113.5,3112.7,0.73139056]
[1644956569641,1.17191986,3113.8,3112.8,4.076541]
[1644956569642,0.65501258,3113.4,3112.8,4.076541]
[1644956569842,1.17191986,3113.8,3112.9,0.67352176]
[1644956569843,0.65501258,3113.3,3112.9,0.67352176]
[1644956570046,0.80306,3113.7,3112.9,1.67352176]
[1644956570241,0.65510568,3113.6,3112.9,2.10308]
[1644956570846,0.65510568,3113.5,3113.1,0.0047871]
[1644956571147,0.65510568,3113.4,3113.1,0.8078671]
[1644956571342,0.65510568,3113.3,3113.1,0.8078671]
[1644956571547,1.47191986,3113.8,3113.2,0.80308]
[1644956571743,0.65455286,3113.7,3113.2,0.80308]
[1644956572444,0.80309,3113.6,3113.0,0.00480858]
[1644956572647,0.65455286,3113.5,3113.0,1.00480858]
[1644956572844,0.65455286,3113.5,3113.0,1.0]
[1644956573087,1.47191986,3113.8,3113.0,5.0376033]
[1644956573285,0.65462948,3113.7,3113.1,0.00480845]
[1644956574088,2.8692,3114.1,3113.2,0.80309]
[1644956574286,0.65419594,3114.0,3113.3,4.04885516]
[1644956574488,5.5462,3114.4,3113.3,5.65451516]
[1644956574489,0.65419594,3113.9,3113.3,5.65451516]
[1644956574687,0.02083786,3114.5,3113.3,5.65451516]
[1644956574886,0.65185285,3114.4,3113.4,1.0]
[1644956575086,1.75475285,3114.4,3113.5,3.39642416]
[1644956575289,0.65185285,3114.3,3113.6,1.0]
[1644956576285,0.8030087,3114.2,3113.4,1.0]
[1644956576484,0.65185285,3114.1,3113.4,1.0]
[1644956576695,0.65185285,3114.1,3113.1,6.60478947]
[1644956576940,0.65185285,3114.0,3113.3,0.00474941]
[1644956577138,0.90518226,3113.6,3113.3,0.80780941]
[1644956577734,0.90518226,3113.6,3113.3,0.80306]
[1644956577937,0.90518226,3113.6,3113.3,0.80780937]
[1644956578535,0.90518226,3113.6,3113.3,0.03006819]
[1644956578936,1.70827226,3113.6,3113.0,1.60609]
[1644956579138,1.70827226,3113.6,3113.3,0.00475042]
[1644956580137,1.70827226,3113.6,3113.0,1.60609]
[1644956580341,1.70827226,3113.6,3113.3,0.00441169]
[1644956581482,1.70827226,3113.6,3113.0,0.80308]
[1644956581683,0.90518226,3113.6,3113.3,0.80749169]
[1644956582482,0.90518226,3113.6,3113.3,0.80308]
[1644956583186,0.3,3114.1,3113.3,0.80749147]
[1644956583383,0.63688554,3114.0,3113.3,0.80749147]
[1644956583783,0.63688554,3114.0,3113.3,0.80308]
[1644956583987,0.63688554,3114.0,3113.3,0.8075142]
[1644956584436,1.09161453,3113.9,3113.3,1.6105342]
[1644956584632,0.63688554,3113.8,3113.3,0.8074542]
[1644956584831,0.63688554,3113.8,3113.4,0.80303]
[1644956585934,1.43991554,3113.8,3113.4,0.80303]
[1644956586132,0.63688554,3113.7,3113.5,0.3]
[1644956586333,0.63688554,3113.7,3113.5,1.10297]
[1644956586533,1.09161453,3113.9,3113.5,0.80297]
[1644956586732,1.2078,3114.3,3113.5,1.10297]
[1644956586733,0.63727052,3113.8,3113.5,1.10297]
[1644956586936,0.63727052,3113.7,3113.5,0.80297]
[1644956587133,0.76707392,3114.5,3113.5,0.80297]
[1644956587336,0.63727284,3114.4,3113.5,1.10297]
[1644956587735,1.08457194,3114.1,3113.5,1.10297]
[1644956588086,1.44026284,3114.0,3113.6,0.80296]
[1644956588289,0.63727284,3113.9,3113.6,1.60591]
[1644956588489,0.63727284,3113.9,3113.6,0.80295]
[1644956588788,0.63757071,3113.8,3113.7,0.3]
[1644956588990,0.02083786,3114.5,3113.7,1.90579]
[1644956589189,0.02083786,3114.5,3113.8,0.80289]
[1644956589190,0.63759716,3114.4,3113.8,0.80289]
[1644956589387,0.63759716,3114.4,3113.8,0.80294]
[1644956589592,0.63759716,3114.4,3114.0,0.3]
[1644956589789,1.15654747,3114.3,3113.7,1.90579]
[1644956589989,0.63759716,3114.2,3113.7,1.60579]
[1644956590490,1.44051716,3114.2,3113.7,1.60579]
[1644956590689,0.63759716,3114.1,3113.7,1.90579]
[1644956590894,0.63759716,3114.1,3113.7,1.60579]